[Event "Titled Tuesday Blitz June 21 Late 2022"]
[White "Winkels, Marcel"]
[Black "Arnold, Ken"]
[WhiteFideId "1003887"]
[BlackFideId "2056836"]
[WhiteElo "1900"]
[BlackElo "2316"]
[Result "0-1"]
[Round "05"]
[TimeControl "180+1"]
[Date "2022.06.22"]
[WhiteClock "0:00:45"]
[BlackClock "0:00:19"]

1. f4 {[%clk 0:02:58]}  c6 {[%clk 0:02:59]} 2. Nf3 {[%clk 0:02:57]}  d5 {[%clk 0:02:59]} 3. g3 {[%clk 0:02:58]}  Nf6 {[%clk 0:02:59]} 4. Bg2 {[%clk 0:02:58]}  Bg4 {[%clk 0:03:00]} 5. O-O {[%clk 0:02:59]}  Nbd7 {[%clk 0:03:00]} 6. d3 {[%clk 0:02:58]}  Qc7 {[%clk 0:03:00]} 7. Nbd2 {[%clk 0:02:58]}  e5 {[%clk 0:02:57]} 8. fxe5 {[%clk 0:02:54]}  Nxe5 {[%clk 0:02:57]} 9. Nxe5 {[%clk 0:02:54]}  Qxe5 {[%clk 0:02:58]} 10. Nf3 {[%clk 0:02:53]}  Bxf3 {[%clk 0:02:53]} 11. exf3 {[%clk 0:02:47]}  Bc5+ {[%clk 0:02:49]} 12. Kh1 {[%clk 0:02:39]}  O-O {[%clk 0:02:38]} 13. c3 {[%clk 0:02:33]}  Bb6 {[%clk 0:02:32]} 14. Re1 {[%clk 0:02:30]}  Qd6 {[%clk 0:02:28]} 15. Bf4 {[%clk 0:02:29]}  Qd7 {[%clk 0:02:27]} 16. Be5 {[%clk 0:02:28]}  Qf5 {[%clk 0:02:14]} 17. a4 {[%clk 0:02:10]}  Rfe8 {[%clk 0:02:12]} 18. d4 {[%clk 0:02:07]}  Nd7 {[%clk 0:02:05]} 19. Bf4 {[%clk 0:02:05]}  g5 {[%clk 0:01:49]} 20. Bd2 {[%clk 0:01:59]}  Bc7 {[%clk 0:01:47]} 21. Qb1 {[%clk 0:01:49]}  Rxe1+ {[%clk 0:01:41]} 22. Bxe1 {[%clk 0:01:47]}  Qxb1 {[%clk 0:01:38]} 23. Rxb1 {[%clk 0:01:46]}  Re8 {[%clk 0:01:38]} 24. Bf1 {[%clk 0:01:42]}  Nf6 {[%clk 0:01:34]} 25. Bd2 {[%clk 0:01:37]}  h6 {[%clk 0:01:22]} 26. Re1 {[%clk 0:01:34]}  Rxe1 {[%clk 0:01:18]} 27. Bxe1 {[%clk 0:01:33]}  Ne8 {[%clk 0:00:49]} 28. Bd2 {[%clk 0:01:32]}  Kf8 {[%clk 0:00:47]} 29. h4 {[%clk 0:01:30]}  f6 {[%clk 0:00:46]} 30. Bh3 {[%clk 0:01:29]}  Ke7 {[%clk 0:00:45]} 31. h5 {[%clk 0:01:25]}  Bxg3 {[%clk 0:00:44]} 32. Kg2 {[%clk 0:01:22]}  Bc7 {[%clk 0:00:39]} 33. Bc8 {[%clk 0:01:21]}  Nd6 {[%clk 0:00:39]} 34. Bg4 {[%clk 0:01:19]}  f5 {[%clk 0:00:38]} 35. Bh3 {[%clk 0:01:18]}  Kf6 {[%clk 0:00:38]} 36. b3 {[%clk 0:01:17]}  Ne8 {[%clk 0:00:37]} 37. Kf2 {[%clk 0:01:16]}  Ng7 {[%clk 0:00:35]} 38. Bf1 {[%clk 0:01:02]}  a6 {[%clk 0:00:34]} 39. b4 {[%clk 0:00:59]}  Nxh5 {[%clk 0:00:32]} 40. b5 {[%clk 0:00:59]}  axb5 {[%clk 0:00:32]} 41. axb5 {[%clk 0:00:59]}  Ng7 {[%clk 0:00:32]} 42. c4 {[%clk 0:00:59]}  Ne6 {[%clk 0:00:28]} 43. Bc3 {[%clk 0:00:55]}  Bf4 {[%clk 0:00:26]} 44. b6 {[%clk 0:00:51]}  h5 {[%clk 0:00:22]} 45. c5 {[%clk 0:00:50]}  g4 {[%clk 0:00:22]} 46. fxg4 {[%clk 0:00:47]}  hxg4 {[%clk 0:00:21]} 47. Ba6 {[%clk 0:00:46]}  bxa6 {[%clk 0:00:19]} 48. b7 {[%clk 0:00:46]}  Bb8 {[%clk 0:00:19]} 49. Ba5 {[%clk 0:00:45]}  Nc7 {[%clk 0:00:19]} 50. Bb6 {[%clk 0:00:45]}  Nb5 {[%clk 0:00:19]} 51. Ba7 {[%clk 0:00:45]}  Bxa7 {[%clk 0:00:19]} 0-1


[Site "https://www.chess.com"]

[Event "Titled Tuesday Blitz June 21 Late 2022"]
[White "Yoo, Christopher Woojin"]
[Black "Bortnyk, Mykola"]
[WhiteFideId "30909694"]
[BlackFideId "14120836"]
[WhiteElo "2105"]
[BlackElo "2582"]
[Result "1-0"]
[Round "05"]
[TimeControl "180+1"]
[Date "2022.06.21"]
[WhiteClock "0:00:04"]
[BlackClock "0:00:02"]

1. e4 {[%clk 0:02:57]}  Nf6 {[%clk 0:02:59]} 2. Nc3 {[%clk 0:02:57]}  d5 {[%clk 0:02:59]} 3. exd5 {[%clk 0:02:58]}  Nxd5 {[%clk 0:03:00]} 4. Bc4 {[%clk 0:02:59]}  Nb6 {[%clk 0:03:00]} 5. Bb5+ {[%clk 0:02:59]}  c6 {[%clk 0:02:58]} 6. Be2 {[%clk 0:02:58]}  Bf5 {[%clk 0:02:58]} 7. Nf3 {[%clk 0:02:59]}  N8d7 {[%clk 0:02:57]} 8. a4 {[%clk 0:02:58]}  e6 {[%clk 0:02:54]} 9. a5 {[%clk 0:02:58]}  Nd5 {[%clk 0:02:54]} 10. a6 {[%clk 0:02:59]}  bxa6 {[%clk 0:02:47]} 11. Nd4 {[%clk 0:02:51]}  Qf6 {[%clk 0:02:34]} 12. Nxf5 {[%clk 0:02:18]}  Qxf5 {[%clk 0:02:35]} 13. O-O {[%clk 0:02:13]}  Bd6 {[%clk 0:02:30]} 14. Rxa6 {[%clk 0:01:54]}  Nb4 {[%clk 0:02:24]} 15. Ra1 {[%clk 0:01:42]}  Nxc2 {[%clk 0:02:09]} 16. Bg4 {[%clk 0:01:23]}  Qe5 {[%clk 0:02:06]} 17. g3 {[%clk 0:01:05]}  Nxa1 {[%clk 0:02:04]} 18. d4 {[%clk 0:01:05]}  Qa5 {[%clk 0:01:58]} 19. Bf3 {[%clk 0:00:55]}  O-O {[%clk 0:01:56]} 20. Bxc6 {[%clk 0:00:55]}  Rad8 {[%clk 0:01:56]} 21. Be3 {[%clk 0:00:56]}  Qb6 {[%clk 0:01:33]} 22. d5 {[%clk 0:00:51]}  Bc5 {[%clk 0:01:23]} 23. Na4 {[%clk 0:00:48]}  Qb4 {[%clk 0:01:14]} 24. Bd2 {[%clk 0:00:48]}  Qd4 {[%clk 0:01:05]} 25. Qe2 {[%clk 0:00:21]}  Nb3 {[%clk 0:00:57]} 26. Bc3 {[%clk 0:00:18]}  exd5 {[%clk 0:00:36]} 27. Bxd4 {[%clk 0:00:18]}  Nxd4 {[%clk 0:00:37]} 28. Qa6 {[%clk 0:00:17]}  Nb8 {[%clk 0:00:34]} 29. Qd3 {[%clk 0:00:17]}  Nbxc6 {[%clk 0:00:29]} 30. Nxc5 {[%clk 0:00:17]}  Ne5 {[%clk 0:00:29]} 31. Qa6 {[%clk 0:00:14]}  Rc8 {[%clk 0:00:28]} 32. b4 {[%clk 0:00:13]}  Rc6 {[%clk 0:00:24]} 33. Qxa7 {[%clk 0:00:13]}  Rh6 {[%clk 0:00:22]} 34. Kg2 {[%clk 0:00:14]}  Ndf3 {[%clk 0:00:19]} 35. Rh1 {[%clk 0:00:15]}  Rg6 {[%clk 0:00:17]} 36. h4 {[%clk 0:00:13]}  h5 {[%clk 0:00:17]} 37. b5 {[%clk 0:00:13]}  Nd4 {[%clk 0:00:15]} 38. b6 {[%clk 0:00:11]}  Ndc6 {[%clk 0:00:15]} 39. Qa4 {[%clk 0:00:10]}  Rf6 {[%clk 0:00:13]} 40. b7 {[%clk 0:00:09]}  Ng4 {[%clk 0:00:13]} 41. Rf1 {[%clk 0:00:09]}  Re8 {[%clk 0:00:12]} 42. Nd7 {[%clk 0:00:08]}  Rfe6 {[%clk 0:00:10]} 43. Qb5 {[%clk 0:00:05]}  Nb8 {[%clk 0:00:10]} 44. Nxb8 {[%clk 0:00:04]}  Rxb8 {[%clk 0:00:11]} 45. Rc1 {[%clk 0:00:04]}  Kh7 {[%clk 0:00:03]} 46. Rc8 {[%clk 0:00:04]}  Rf6 {[%clk 0:00:01]} 47. Rxb8 {[%clk 0:00:04]}  Rxf2+ {[%clk 0:00:02]} 48. Kg1 {[%clk 0:00:04]} 1-0


[Site "https://www.chess.com"]

[Event "Titled Tuesday Blitz June 21 Late 2022"]
[White "Zhigalko, Sergei"]
[Black "Grischuk, Alexander"]
[WhiteFideId "13502956"]
[BlackFideId "4126025"]
[WhiteElo "2662"]
[BlackElo "2762"]
[Result "1/2-1/2"]
[Round "05"]
[TimeControl "180+1"]
[Date "2022.06.21"]
[WhiteClock "0:00:01"]
[BlackClock "0:00:06"]

1. e4 {[%clk 0:03:00]}  e6 {[%clk 0:02:59]} 2. d4 {[%clk 0:03:01]}  d5 {[%clk 0:03:00]} 3. e5 {[%clk 0:03:01]}  c5 {[%clk 0:03:00]} 4. c3 {[%clk 0:03:02]}  Nc6 {[%clk 0:03:01]} 5. Nf3 {[%clk 0:03:03]}  Qb6 {[%clk 0:03:02]} 6. a3 {[%clk 0:03:03]}  c4 {[%clk 0:03:02]} 7. Nbd2 {[%clk 0:03:03]}  Na5 {[%clk 0:03:03]} 8. Be2 {[%clk 0:03:03]}  Bd7 {[%clk 0:03:03]} 9. O-O {[%clk 0:03:03]}  Ne7 {[%clk 0:03:02]} 10. h4 {[%clk 0:03:01]}  h6 {[%clk 0:02:47]} 11. h5 {[%clk 0:03:01]}  O-O-O {[%clk 0:02:42]} 12. Nh2 {[%clk 0:02:31]}  Kb8 {[%clk 0:02:41]} 13. Rb1 {[%clk 0:02:22]}  Ka8 {[%clk 0:02:41]} 14. f4 {[%clk 0:02:18]}  Nc8 {[%clk 0:02:30]} 15. Bg4 {[%clk 0:02:03]}  f5 {[%clk 0:02:22]} 16. exf6 {[%clk 0:01:54]}  gxf6 {[%clk 0:02:22]} 17. Nhf3 {[%clk 0:01:30]}  Rg8 {[%clk 0:02:11]} 18. Nh4 {[%clk 0:01:27]}  Nd6 {[%clk 0:02:06]} 19. Ng6 {[%clk 0:01:24]}  f5 {[%clk 0:01:58]} 20. Be2 {[%clk 0:01:16]}  Bg7 {[%clk 0:01:49]} 21. Kh2 {[%clk 0:01:09]}  Be8 {[%clk 0:01:44]} 22. Ne5 {[%clk 0:01:01]}  Bf6 {[%clk 0:01:30]} 23. g3 {[%clk 0:01:01]}  Rg7 {[%clk 0:01:27]} 24. Rg1 {[%clk 0:01:00]}  Bc6 {[%clk 0:01:14]} 25. Rg2 {[%clk 0:00:45]}  Rdg8 {[%clk 0:01:14]} 26. Bf3 {[%clk 0:00:31]}  Be8 {[%clk 0:01:09]} 27. Nf1 {[%clk 0:00:31]}  a6 {[%clk 0:00:58]} 28. Be3 {[%clk 0:00:30]}  Qc7 {[%clk 0:00:58]} 29. Nd2 {[%clk 0:00:29]}  Qe7 {[%clk 0:00:53]} 30. Qe2 {[%clk 0:00:27]}  Ba4 {[%clk 0:00:51]} 31. Rbg1 {[%clk 0:00:26]}  Qc7 {[%clk 0:00:48]} 32. Ng6 {[%clk 0:00:17]}  Qb6 {[%clk 0:00:47]} 33. Nf1 {[%clk 0:00:15]}  Re8 {[%clk 0:00:38]} 34. g4 {[%clk 0:00:15]}  fxg4 {[%clk 0:00:38]} 35. Bxg4 {[%clk 0:00:15]}  Nc6 {[%clk 0:00:22]} 36. Ng3 {[%clk 0:00:14]}  Bh4 {[%clk 0:00:21]} 37. Nxh4 {[%clk 0:00:11]}  Bc2 {[%clk 0:00:19]} 38. Qxc2 {[%clk 0:00:09]}  Rxg4 {[%clk 0:00:19]} 39. Ng6 {[%clk 0:00:10]}  Ne7 {[%clk 0:00:18]} 40. Qe2 {[%clk 0:00:10]}  Rxg6 {[%clk 0:00:17]} 41. hxg6 {[%clk 0:00:11]}  Nxg6 {[%clk 0:00:18]} 42. Qh5 {[%clk 0:00:11]}  Ne7 {[%clk 0:00:17]} 43. f5 {[%clk 0:00:07]}  exf5 {[%clk 0:00:17]} 44. Bf4 {[%clk 0:00:07]}  Rd8 {[%clk 0:00:16]} 45. Kh1 {[%clk 0:00:06]}  Ne4 {[%clk 0:00:14]} 46. Nxf5 {[%clk 0:00:05]}  Nxf5 {[%clk 0:00:14]} 47. Qxf5 {[%clk 0:00:06]}  Ka7 {[%clk 0:00:11]} 48. Bh2 {[%clk 0:00:06]}  Qb3 {[%clk 0:00:07]} 49. Re2 {[%clk 0:00:05]}  h5 {[%clk 0:00:06]} 50. Qxh5 {[%clk 0:00:03]}  Qb6 {[%clk 0:00:05]} 51. Qe5 {[%clk 0:00:03]}  Qh6 {[%clk 0:00:04]} 52. Rxe4 {[%clk 0:00:03]}  dxe4 {[%clk 0:00:05]} 53. Qxe4 {[%clk 0:00:03]}  Qd2 {[%clk 0:00:04]} 54. Qg2 {[%clk 0:00:04]}  Qd3 {[%clk 0:00:05]} 55. Rf1 {[%clk 0:00:03]}  Rh8 {[%clk 0:00:04]} 56. Qf3 {[%clk 0:00:03]}  Qd2 {[%clk 0:00:04]} 57. Rf2 {[%clk 0:00:03]}  Qc1+ {[%clk 0:00:04]} 58. Kg2 {[%clk 0:00:03]}  Rg8+ {[%clk 0:00:04]} 59. Bg3 {[%clk 0:00:03]}  Rh8 {[%clk 0:00:05]} 60. Rf1 {[%clk 0:00:03]}  Qxb2+ {[%clk 0:00:05]} 61. Rf2 {[%clk 0:00:03]}  Qc1 {[%clk 0:00:05]} 62. Rf1 {[%clk 0:00:01]}  Qb2+ {[%clk 0:00:06]} 63. Rf2 {[%clk 0:00:01]}  Qc1 {[%clk 0:00:06]} 64. Rf1 {[%clk 0:00:01]}  Qb2+ {[%clk 0:00:06]} 1/2-1/2


[Site "https://www.chess.com"]

[Event "Titled Tuesday Blitz June 21 Late 2022"]
[White "Zhou, Qiyu"]
[Black "Reprintsev, Alexander"]
[WhiteFideId "505161"]
[BlackFideId "14100541"]
[WhiteElo "1925"]
[BlackElo "2108"]
[Result "0-1"]
[Round "05"]
[TimeControl "180+1"]
[Date "2022.06.22"]
[WhiteClock "0:00:07"]
[BlackClock "0:00:18"]

1. e4 {[%clk 0:03:00]}  d5 {[%clk 0:02:55]} 2. exd5 {[%clk 0:02:59]}  Qxd5 {[%clk 0:02:54]} 3. Nc3 {[%clk 0:02:59]}  Qa5 {[%clk 0:02:48]} 4. Bc4 {[%clk 0:03:00]}  Nf6 {[%clk 0:02:46]} 5. d4 {[%clk 0:02:58]}  Bg4 {[%clk 0:02:45]} 6. f3 {[%clk 0:02:58]}  Be6 {[%clk 0:02:45]} 7. Bxe6 {[%clk 0:02:56]}  fxe6 {[%clk 0:02:45]} 8. Qe2 {[%clk 0:02:51]}  Nc6 {[%clk 0:02:44]} 9. Be3 {[%clk 0:02:41]}  Nd5 {[%clk 0:02:41]} 10. Qd2 {[%clk 0:02:31]}  g6 {[%clk 0:02:40]} 11. Nge2 {[%clk 0:02:27]}  Bg7 {[%clk 0:02:39]} 12. O-O-O {[%clk 0:02:14]}  O-O-O {[%clk 0:02:35]} 13. Kb1 {[%clk 0:02:10]}  Nb6 {[%clk 0:02:10]} 14. Bf2 {[%clk 0:01:19]}  e5 {[%clk 0:02:03]} 15. Qg5 {[%clk 0:01:16]}  exd4 {[%clk 0:01:48]} 16. Qxa5 {[%clk 0:01:15]}  Nxa5 {[%clk 0:01:48]} 17. Bxd4 {[%clk 0:01:13]}  e5 {[%clk 0:01:47]} 18. Bc5 {[%clk 0:01:03]}  Nd7 {[%clk 0:01:23]} 19. Be3 {[%clk 0:00:40]}  Nc4 {[%clk 0:01:22]} 20. Bc1 {[%clk 0:00:39]}  Nf6 {[%clk 0:01:17]} 21. b3 {[%clk 0:00:35]}  Nd6 {[%clk 0:01:17]} 22. Ng3 {[%clk 0:00:31]}  Rhe8 {[%clk 0:00:58]} 23. Rhe1 {[%clk 0:00:28]}  h5 {[%clk 0:00:53]} 24. Bg5 {[%clk 0:00:22]}  Rd7 {[%clk 0:00:49]} 25. Rd2 {[%clk 0:00:16]}  Nh7 {[%clk 0:00:47]} 26. Be3 {[%clk 0:00:15]}  Nf5 {[%clk 0:00:38]} 27. Nxf5 {[%clk 0:00:14]}  gxf5 {[%clk 0:00:37]} 28. Red1 {[%clk 0:00:13]}  Rxd2 {[%clk 0:00:35]} 29. Rxd2 {[%clk 0:00:14]}  e4 {[%clk 0:00:30]} 30. fxe4 {[%clk 0:00:13]}  Bxc3 {[%clk 0:00:29]} 31. Rd3 {[%clk 0:00:13]}  Be5 {[%clk 0:00:27]} 32. exf5 {[%clk 0:00:13]}  Bxh2 {[%clk 0:00:26]} 33. Bh6 {[%clk 0:00:09]}  Bd6 {[%clk 0:00:25]} 34. Rf3 {[%clk 0:00:08]}  Nf6 {[%clk 0:00:24]} 35. Bg7 {[%clk 0:00:07]}  Re1+ {[%clk 0:00:20]} 36. Kb2 {[%clk 0:00:07]}  Be5+ {[%clk 0:00:21]} 37. c3 {[%clk 0:00:07]}  Re2+ {[%clk 0:00:20]} 38. Ka3 {[%clk 0:00:06]}  Rxg2 {[%clk 0:00:20]} 39. Bxf6 {[%clk 0:00:06]}  Bxf6 {[%clk 0:00:19]} 40. Rh3 {[%clk 0:00:07]}  Rg5 {[%clk 0:00:18]} 0-1


[Site "https://www.chess.com"]

[Event "Titled Tuesday Blitz June 21 Late 2022"]
[White "Aldokhin, Ivan"]
[Black "Melikhov, Evgeny V."]
[WhiteFideId "24115720"]
[BlackFideId "4122046"]
[WhiteElo "2231"]
[BlackElo "1904"]
[Result "1-0"]
[Round "06"]
[TimeControl "180+1"]
[Date "2022.06.22"]
[WhiteClock "0:00:10"]
[BlackClock "0:00:04"]

1. d4 {[%clk 0:03:00]}  Nf6 {[%clk 0:02:59]} 2. c4 {[%clk 0:03:01]}  e6 {[%clk 0:02:59]} 3. Nc3 {[%clk 0:03:01]}  Bb4 {[%clk 0:02:59]} 4. e3 {[%clk 0:03:02]}  b6 {[%clk 0:02:59]} 5. Ne2 {[%clk 0:03:02]}  Ba6 {[%clk 0:02:58]} 6. a3 {[%clk 0:03:02]}  Bxc3+ {[%clk 0:02:58]} 7. Nxc3 {[%clk 0:03:03]}  d5 {[%clk 0:02:58]} 8. b3 {[%clk 0:02:55]}  O-O {[%clk 0:02:54]} 9. Be2 {[%clk 0:02:55]}  c5 {[%clk 0:02:54]} 10. dxc5 {[%clk 0:02:48]}  dxc4 {[%clk 0:02:54]} 11. Qxd8 {[%clk 0:02:20]}  Rxd8 {[%clk 0:02:52]} 12. cxb6 {[%clk 0:02:13]}  axb6 {[%clk 0:02:52]} 13. bxc4 {[%clk 0:02:08]}  Nbd7 {[%clk 0:02:49]} 14. Bb2 {[%clk 0:02:02]}  Rdc8 {[%clk 0:02:26]} 15. Nb5 {[%clk 0:01:58]}  Bxb5 {[%clk 0:02:25]} 16. cxb5 {[%clk 0:01:59]}  Rc2 {[%clk 0:02:25]} 17. Bxf6 {[%clk 0:01:48]}  Nxf6 {[%clk 0:02:19]} 18. Bf3 {[%clk 0:01:46]}  Ra5 {[%clk 0:02:12]} 19. Bc6 {[%clk 0:01:42]}  Rc3 {[%clk 0:02:10]} 20. a4 {[%clk 0:01:23]}  Rc4 {[%clk 0:02:10]} 21. O-O {[%clk 0:01:16]}  Raxa4 {[%clk 0:02:10]} 22. Rad1 {[%clk 0:01:16]}  g6 {[%clk 0:02:03]} 23. Rd8+ {[%clk 0:01:12]}  Kg7 {[%clk 0:02:03]} 24. Rb8 {[%clk 0:01:13]}  Nd5 {[%clk 0:02:01]} 25. Rb7 {[%clk 0:01:06]}  Ra2 {[%clk 0:01:53]} 26. Be8 {[%clk 0:00:49]}  Rc7 {[%clk 0:01:53]} 27. Rb8 {[%clk 0:00:35]}  Rcc2 {[%clk 0:01:51]} 28. Bc6 {[%clk 0:00:34]}  g5 {[%clk 0:01:39]} 29. h3 {[%clk 0:00:34]}  h5 {[%clk 0:01:39]} 30. Bxd5 {[%clk 0:00:30]}  exd5 {[%clk 0:01:38]} 31. Rxb6 {[%clk 0:00:31]}  g4 {[%clk 0:01:36]} 32. hxg4 {[%clk 0:00:31]}  hxg4 {[%clk 0:01:36]} 33. g3 {[%clk 0:00:30]}  Rab2 {[%clk 0:01:36]} 34. Rb7 {[%clk 0:00:18]}  Kg6 {[%clk 0:01:34]} 35. b6 {[%clk 0:00:17]}  Rc6 {[%clk 0:01:28]} 36. Rd7 {[%clk 0:00:17]}  Rcxb6 {[%clk 0:01:24]} 37. Rxd5 {[%clk 0:00:18]}  f5 {[%clk 0:01:24]} 38. Rd4 {[%clk 0:00:18]}  R2b4 {[%clk 0:01:22]} 39. Rfd1 {[%clk 0:00:14]}  Rb1 {[%clk 0:01:21]} 40. Kg2 {[%clk 0:00:13]}  Rxd1 {[%clk 0:01:20]} 41. Rxd1 {[%clk 0:00:14]}  Rb2 {[%clk 0:01:20]} 42. Rd4 {[%clk 0:00:14]}  Kf6 {[%clk 0:01:19]} 43. Rd6+ {[%clk 0:00:15]}  Ke5 {[%clk 0:01:19]} 44. Ra6 {[%clk 0:00:15]}  Rb3 {[%clk 0:01:18]} 45. Ra5+ {[%clk 0:00:15]}  Ke6 {[%clk 0:01:18]} 46. Ra4 {[%clk 0:00:15]}  Rb2 {[%clk 0:01:18]} 47. Rd4 {[%clk 0:00:15]}  Ke5 {[%clk 0:01:18]} 48. Rd1 {[%clk 0:00:15]}  Ra2 {[%clk 0:01:18]} 49. Kf1 {[%clk 0:00:15]}  Rb2 {[%clk 0:01:17]} 50. Ke1 {[%clk 0:00:16]}  Ke4 {[%clk 0:01:13]} 51. Rd2 {[%clk 0:00:14]}  Rb5 {[%clk 0:01:07]} 52. Rd4+ {[%clk 0:00:13]}  Ke5 {[%clk 0:01:07]} 53. Ke2 {[%clk 0:00:14]}  Rb3 {[%clk 0:01:07]} 54. Rd2 {[%clk 0:00:14]}  Ra3 {[%clk 0:01:07]} 55. Rb2 {[%clk 0:00:14]}  Rc3 {[%clk 0:01:05]} 56. Kd2 {[%clk 0:00:15]}  Ra3 {[%clk 0:01:05]} 57. Rb5+ {[%clk 0:00:15]}  Ke4 {[%clk 0:01:00]} 58. Rb4+ {[%clk 0:00:15]}  Ke5 {[%clk 0:01:00]} 59. Rc4 {[%clk 0:00:16]}  Ra2+ {[%clk 0:00:57]} 60. Rc2 {[%clk 0:00:16]}  Ra3 {[%clk 0:00:55]} 61. Ke2 {[%clk 0:00:16]}  Rb3 {[%clk 0:00:54]} 62. Rc5+ {[%clk 0:00:16]}  Ke4 {[%clk 0:00:51]} 63. Rc4+ {[%clk 0:00:16]}  Ke5 {[%clk 0:00:51]} 64. Rc2 {[%clk 0:00:17]}  Ra3 {[%clk 0:00:51]} 65. Kf1 {[%clk 0:00:17]}  Ke4 {[%clk 0:00:50]} 66. Rc4+ {[%clk 0:00:17]}  Ke5 {[%clk 0:00:50]} 67. Kg2 {[%clk 0:00:17]}  Rb3 {[%clk 0:00:49]} 68. Rc8 {[%clk 0:00:18]}  Ra3 {[%clk 0:00:46]} 69. Re8+ {[%clk 0:00:18]}  Kf6 {[%clk 0:00:46]} 70. Rf8+ {[%clk 0:00:14]}  Ke5 {[%clk 0:00:46]} 71. Rd8 {[%clk 0:00:14]}  Rb3 {[%clk 0:00:42]} 72. Ra8 {[%clk 0:00:14]}  Rc3 {[%clk 0:00:42]} 73. Ra4 {[%clk 0:00:14]}  Rb3 {[%clk 0:00:42]} 74. Ra5+ {[%clk 0:00:14]}  Ke4 {[%clk 0:00:37]} 75. Ra4+ {[%clk 0:00:14]}  Ke5 {[%clk 0:00:37]} 76. f4+ {[%clk 0:00:13]}  Ke6 {[%clk 0:00:33]} 77. e4 {[%clk 0:00:11]}  Rb2+ {[%clk 0:00:31]} 78. Kf1 {[%clk 0:00:12]}  fxe4 {[%clk 0:00:26]} 79. Rxe4+ {[%clk 0:00:11]}  Kf6 {[%clk 0:00:18]} 80. Re2 {[%clk 0:00:10]}  Rb3 {[%clk 0:00:16]} 81. Kg2 {[%clk 0:00:11]}  Rb5 {[%clk 0:00:13]} 82. Kf2 {[%clk 0:00:10]}  Ra5 {[%clk 0:00:13]} 83. Rb2 {[%clk 0:00:10]}  Rc5 {[%clk 0:00:11]} 84. Kg2 {[%clk 0:00:10]}  Ra5 {[%clk 0:00:11]} 85. Kh2 {[%clk 0:00:09]}  Rc5 {[%clk 0:00:11]} 86. Re2 {[%clk 0:00:09]}  Ra5 {[%clk 0:00:10]} 87. Kg2 {[%clk 0:00:10]}  Rb5 {[%clk 0:00:10]} 88. Rd2 {[%clk 0:00:10]}  Ra5 {[%clk 0:00:11]} 89. Kf2 {[%clk 0:00:10]}  Rb5 {[%clk 0:00:11]} 90. Ke3 {[%clk 0:00:11]}  Rb3+ {[%clk 0:00:11]} 91. Rd3 {[%clk 0:00:11]}  Rb5 {[%clk 0:00:08]} 92. Ke4 {[%clk 0:00:11]}  Rb4+ {[%clk 0:00:08]} 93. Rd4 {[%clk 0:00:11]}  Rb3 {[%clk 0:00:08]} 94. Rd6+ {[%clk 0:00:11]}  Ke7 {[%clk 0:00:08]} 95. Rd3 {[%clk 0:00:11]}  Rb5 {[%clk 0:00:07]} 96. f5 {[%clk 0:00:11]}  Kf6 {[%clk 0:00:07]} 97. Rd6+ {[%clk 0:00:10]}  Kf7 {[%clk 0:00:06]} 98. Kf4 {[%clk 0:00:10]}  Rb4+ {[%clk 0:00:05]} 99. Kg5 {[%clk 0:00:10]}  Kg7 {[%clk 0:00:05]} 100. Rd7+ {[%clk 0:00:10]}  Kf8 {[%clk 0:00:06]} 101. Kg6 {[%clk 0:00:10]}  Rb6+ {[%clk 0:00:04]} 102. f6 {[%clk 0:00:10]}  Rb8 {[%clk 0:00:04]} 103. Rh7 {[%clk 0:00:10]} 1-0


[Site "https://www.chess.com"]

[Event "Titled Tuesday Blitz June 21 Late 2022"]
[White "Al-Tarboush, Ward"]
[Black "Melaugh, Shane"]
[WhiteFideId "7601450"]
[BlackFideId "2509580"]
[WhiteElo "2578"]
[BlackElo "2429"]
[Result "1-0"]
[Round "06"]
[TimeControl "180+1"]
[Date "2022.06.22"]
[WhiteClock "0:00:53"]
[BlackClock "0:00:03"]

1. e4 {[%clk 0:03:00]}  e6 {[%clk 0:02:59]} 2. d4 {[%clk 0:03:00]}  d5 {[%clk 0:02:58]} 3. exd5 {[%clk 0:03:01]}  exd5 {[%clk 0:02:59]} 4. Bd3 {[%clk 0:03:01]}  Bd6 {[%clk 0:02:58]} 5. Nc3 {[%clk 0:03:01]}  c6 {[%clk 0:02:55]} 6. Nge2 {[%clk 0:03:00]}  Ne7 {[%clk 0:02:55]} 7. Bg5 {[%clk 0:03:00]}  f6 {[%clk 0:02:55]} 8. Bh4 {[%clk 0:02:59]}  Bg4 {[%clk 0:02:53]} 9. f3 {[%clk 0:02:51]}  Bf5 {[%clk 0:02:43]} 10. Bg3 {[%clk 0:02:46]}  O-O {[%clk 0:02:40]} 11. Qd2 {[%clk 0:02:45]}  b5 {[%clk 0:02:37]} 12. O-O-O {[%clk 0:02:40]}  a6 {[%clk 0:02:37]} 13. Rdg1 {[%clk 0:02:38]}  a5 {[%clk 0:02:33]} 14. Bxd6 {[%clk 0:02:33]}  Qxd6 {[%clk 0:02:32]} 15. g4 {[%clk 0:02:29]}  Bxd3 {[%clk 0:02:32]} 16. Qxd3 {[%clk 0:02:30]}  Nd7 {[%clk 0:02:28]} 17. h4 {[%clk 0:02:27]}  Nb6 {[%clk 0:02:25]} 18. g5 {[%clk 0:02:22]}  b4 {[%clk 0:02:09]} 19. Nd1 {[%clk 0:02:20]}  Nc4 {[%clk 0:01:57]} 20. h5 {[%clk 0:02:11]}  fxg5 {[%clk 0:01:49]} 21. Rxg5 {[%clk 0:02:12]}  Qh6 {[%clk 0:01:32]} 22. Rg1 {[%clk 0:02:12]}  Rf5 {[%clk 0:01:13]} 23. f4 {[%clk 0:02:11]}  Raf8 {[%clk 0:01:12]} 24. Rxg7+ {[%clk 0:02:10]}  Qxg7 {[%clk 0:01:13]} 25. Rxg7+ {[%clk 0:02:10]}  Kxg7 {[%clk 0:01:13]} 26. b3 {[%clk 0:02:06]}  Nd6 {[%clk 0:01:12]} 27. Ne3 {[%clk 0:02:06]}  Rxh5 {[%clk 0:01:10]} 28. Ng3 {[%clk 0:01:56]}  Rh6 {[%clk 0:00:57]} 29. Ng4 {[%clk 0:01:53]}  Rg6 {[%clk 0:00:46]} 30. Ne5 {[%clk 0:01:53]}  Rh6 {[%clk 0:00:42]} 31. Qf3 {[%clk 0:01:45]}  Ng6 {[%clk 0:00:31]} 32. f5 {[%clk 0:01:39]}  Rh4 {[%clk 0:00:11]} 33. Nxc6 {[%clk 0:00:55]}  Kh8 {[%clk 0:00:03]} 34. Qxd5 {[%clk 0:00:53]} 1-0


[Site "https://www.chess.com"]